{"text_format":"1","workbook":"xlsx","n_sheets":3,"sheets":["INICIO","INSTRUCCIONES DE USO","CÁLCULOS"],"not_rendered":{"charts":0,"images":8,"macros":1,"external_links":0,"defined_names":0,"comments":0,"pivot_tables":0},"unopened":[],"bounds":{"document_bytes":16777216,"sheet_cells":100000,"rows_first":2000,"rows_last":500,"rows_between":2000,"halvings":0,"cell_chars":16384,"cell_head_chars":4096},"cells_cut":0,"cells_raw":0,"read":"whole","date_system":"1900"}

{"sheet":"INICIO","index":0,"n_rows":33,"n_cols":13,"rows_kept":33,"cut":false,"hidden":false,"merged":[[8,4,9,4],[8,5,9,5],[8,6,9,6],[8,11,9,11],[23,3,23,4],[23,5,23,6],[23,7,23,8],[23,9,23,10],[31,3,31,9],[32,3,32,9],[21,2,21,6],[20,2,20,6],[16,2,16,3],[17,2,17,3],[23,2,24,2],[18,2,18,3],[19,2,19,3],[4,3,4,6],[1,4,1,10],[30,3,30,9],[15,2,15,3],[14,2,14,3],[13,2,13,3],[12,2,12,3],[11,2,11,3],[10,2,10,3],[8,2,9,3],[5,4,5,5],[6,4,6,5],[4,9,4,10],[2,3,2,11],[23,11,24,12],[8,7,8,10]]}
[]
[]
[null,null,null,"CALCULADOR DE STOCK Y COSTE DE LAS MASCARILLAS FRENTE AL SARS-CoV-2"]
[]
[null,null,null,"UNE 0064  / UNE 0065 / UNE-CWA 17553",null,null,null,"UNE-EN 14683",null,"UNE-EN 149"]
[]
[]
[]
[null,null,"Puesto/s de trabajo",null,"¿Cuántas personas trabajan en cada puesto de trabajo al día?","¿Cuántos días a la semana trabajan por puesto de trabajo?","¿Cuántas horas es necesario usar la mascarilla por turno de trabajo? ","¿Qué tipo de mascarilla/s van a usar?",null,null,null,"¿Cada cuántas horas debe desecharse o lavarse la mascarilla?*"]
[null,null,null,null,null,null,null,"MASCARILLA HIGIÉNICA REUTILIZABLE","MASCARILLA HIGIÉNICA \nNO REUTILIZABLE","MASCARILLA QUIRÚRGICA","MASCARILLA AUTOFILTRANTE"]
[]
[]
[]
[]
[]
[]
[]
[]
[]
[]
[null,null,"¿Cuál es el coste unitario de la mascarilla?",null,null,null,null,0,0,0,0]
[null,null,"¿Cuál es el número máximo de lavados permitidos por el fabricante? \nSolo aplica a mascarillas higiénicas reutilizables UNE 0065 o UNE-CWA 17553"]
[]
[null,null,"STOCK","MASCARILLA HIGIÉNICA REUTILIZABLE",null,"MASCARILLA HIGIÉNICA \nNO REUTILIZABLE",null,"MASCARILLA QUIRÚRGICA",null,"MASCARILLA AUTOFILTRANTE",null,"COSTE TOTAL"]
[null,null,null,"CAMBIO DE MASCARILLA","COSTE","UNIDADES","COSTE","UNIDADES","COSTE","UNIDADES","COSTE"]
[null,null,"DIARIO",{"$f":"ROUNDUP(CÁLCULOS!L8,0)","v":0},{"$f":"IF($H$22=0,D26*$H$21,D26*$H$21/$H$22)","v":0},{"$f":"ROUNDUP(CÁLCULOS!L13,0)","v":0},{"$f":"F26*$I$21","v":0},{"$f":"ROUNDUP(CÁLCULOS!L18,0)","v":0},{"$f":"H26*$J$21","v":0},{"$f":"CÁLCULOS!L23","v":0},{"$f":"J26*$K$21","v":0},{"$f":"E26+I26+G26+K26","v":0},"DIARIO"]
[null,null,"SEMANAL",{"$f":"ROUNDUP(CÁLCULOS!L9,0)","v":0},{"$f":"IF($H$22=0,D27*$H$21,D27*$H$21/$H$22)","v":0},{"$f":"ROUNDUP(CÁLCULOS!L14,0)","v":0},{"$f":"F27*$I$21","v":0},{"$f":"ROUNDUP(CÁLCULOS!L19,0)","v":0},{"$f":"H27*$J$21","v":0},{"$f":"CÁLCULOS!L24","v":0},{"$f":"J27*$K$21","v":0},{"$f":"E27+I27+G27+K27","v":0},"SEMANAL"]
[null,null,"MENSUAL",{"$f":"ROUNDUP(CÁLCULOS!L10,0)","v":0},0,{"$f":"ROUNDUP(CÁLCULOS!L15,0)","v":0},0,{"$f":"ROUNDUP(CÁLCULOS!L20,0)","v":0},0,{"$f":"CÁLCULOS!L25","v":0},0,0,"MENSUAL"]
[null,null,"TRIMESTRAL",{"$f":"ROUNDUP(CÁLCULOS!L11,0)","v":0},0,{"$f":"ROUNDUP(CÁLCULOS!L16,0)","v":0},0,{"$f":"ROUNDUP(CÁLCULOS!L21,0)","v":0},0,{"$f":"CÁLCULOS!L26","v":0},0,0,"TRIMESTRAL"]
[]
[null,null,null,"*Fuentes de información del Ministerio de Sanidad: "]
[null,null,null,"- Recomendaciones sobre el uso de mascarillas en la comunidad en el contexto del COVID-19. "]
[null,null,null,"- Procedimiento de actuación para los Servicios de Prevención de Riesgos Laborales frente a la exposición al SARS-CoV-2."]

{"sheet":"INSTRUCCIONES DE USO","index":1,"n_rows":13,"n_cols":3,"rows_kept":13,"cut":false,"hidden":false,"merged":[[23,1,23,16],[22,1,22,16],[3,1,3,2],[1,1,1,2],[17,1,17,16],[18,1,18,16],[19,1,19,16],[21,1,21,16],[20,1,20,16]]}
[]
[null,"Este calculador pretende facilitar la estimación del stock necesario y el coste de las mascarillas para la empresa, tras haber evaluado el riesgo de exposición conforme a los escenarios indicados en el  Procedimiento de actuación para los SPRL frente a la la exposición al SARS-CoV-2."]
[]
[]
[null,"Campo requerido","Aspectos a tener en cuenta"]
[null,"Puesto/s de trabajo","Se cumplimentan tantas filas como puestos de trabajo distintos hayan. Ha de tenerse en cuenta que si en un mismo puesto de trabajo, las personas trabajadoras portan diferentes tipos de mascarillas, se considerará a efectos de este calculador como puestos de trabajo distintos. Por ejemplo, en un puesto de administración con dos personas trabajadoras, en las que una de ellas haga uso de una mascarilla higiénica no reutilizable y la otra haga uso de un mascarilla reutilizable, a efectos de este calculador se considerará como dos puestos de trabajo distintos."]
[null,"¿Cuántos días a la semana trabajan por puesto de trabajo?","Ha de tenerse en cuenta que si en un mismo puesto de trabajo, el número de días trabajados por semana puede ser variable (por ejemplo, una semana trabajan 4 días y otra semana trabajan 6 días) se recomienda estimar la media de los días de trabajo semanales o bien, considerarlo como puestos de trabajo distintos. Por ejemplo, Puesto de trabajo: \"Producción 4 días\" y Puesto de trabajo: \"Producción 6 días\"."]
[null,"¿Cuántas horas es necesario usar la mascarilla por turno de trabajo?","La evaluación del riesgo de exposición debe determinar en qué situaciones es necesario hacer uso de mascarillas, siguiendo las recomendaciones que emita el Servicio de Prevención de la empresa. En todo caso, el Servicio de Prevención de la empresa ha de tener en cuenta las pautas y recomendaciones formuladas por las Autoridades sanitarias. El calculador permite indicar hasta 24 horas de uso diario de mascarillas aunque en la mayoría de puestos de trabajo el uso de las mascarillas será inferior a 8 horas."]
[null,"¿Qué tipo de mascarilla/s van a usar?","Se indica mediante una \"X\" el tipo de mascarilla que se vaya a usar para ese puesto de trabajo."]
[null," ¿Cada cuántas horas debe desecharse o lavarse la mascarilla?","Las mascarillas que no son reutilizables deberán desecharse y las mascarillas reutilizables deberán lavarse (sin superar el número de lavados máximo indicados por el fabricante). Para determinar el tiempo de uso de las mascarillas ha de tenerse en cuenta las recomendaciones del fabricante de las mascarillas y las Recomendaciones sobre el uso de mascarillas en la comunidad en el contexto del COVID-19 (Ministerio de Sanidad). Ha de tenerse en cuenta que el mencionado documento del Ministerio de Sanidad indica que:\n- \"Por cuestiones de comodidad e higiene, se recomienda no usar la mascarilla por un tiempo superior a 4 h. En caso de que se humedezca o deteriore por el uso, se recomienda sustituirla por otra.\"\n- \"En caso de ser imprescindible realizar de manera muy puntual un uso intermitente de la mascarilla, se debe extremar la higiene de manos al quitarla y ponerla, y se debe almacenar en un recipiente o bolsa de papel limpios, colocándola de manera que no se contamine la parte interior que va a estar en contacto con la cara.\""]
[null,"¿Qué tipo de mascarilla/s van a usar?","Se indica mediante una \"X\" el tipo de mascarilla que se vaya a usar para ese puesto de trabajo."]
[null,"¿Cuál es el coste unitario de la mascarilla?","Indicar el coste unitario de adquisición de la mascarilla seleccionada."]
[null,"¿Cuál es el número máximo de lavados permitidos por el fabricante?","Puede indicarse un número igual o inferior al señalado por el fabricante de la mascarilla en sus instrucciones de uso."]

{"sheet":"CÁLCULOS","index":2,"n_rows":26,"n_cols":17,"rows_kept":26,"cut":false,"hidden":true,"merged":[]}
[null,null,null,"SI"]
["PUESTOS DE TRABAJO",{"$f":"INICIO!D$11","v":0},{"$f":"INICIO!$D12","v":0},{"$f":"INICIO!$D13","v":0},{"$f":"INICIO!$D14","v":0},{"$f":"INICIO!$D15","v":0},{"$f":"INICIO!$D16","v":0},{"$f":"INICIO!$D17","v":0},{"$f":"INICIO!$D18","v":0},{"$f":"INICIO!$D19","v":0},{"$f":"INICIO!$D20","v":0},null,null,"X"]
["TRABAJADORES PUESTO 24 HORAS",{"$f":"INICIO!$E$11","v":0},{"$f":"INICIO!$E$12","v":0},{"$f":"INICIO!$E$13","v":0},{"$f":"INICIO!$E$14","v":0},{"$f":"INICIO!$E$15","v":0},{"$f":"INICIO!$E$16","v":0},{"$f":"INICIO!$E$17","v":0},{"$f":"INICIO!$E$18","v":0},{"$f":"INICIO!$E$19","v":0},{"$f":"INICIO!$E$20","v":0},null,null,null,2,1,1]
["DIAS LABORALES SEMANALES",{"$f":"INICIO!$F$11","v":0},{"$f":"INICIO!$F$12","v":0},{"$f":"INICIO!$F$13","v":0},{"$f":"INICIO!$F$14","v":0},{"$f":"INICIO!$F$15","v":0},{"$f":"INICIO!$F$16","v":0},{"$f":"INICIO!$F$17","v":0},{"$f":"INICIO!$F$18","v":0},{"$f":"INICIO!$F$19","v":0},{"$f":"INICIO!$F$20","v":0},null,null,null,4,2,2]
["HORAS DE USO NECESARIO ",{"$f":"INICIO!$G$11","v":0},{"$f":"INICIO!$G$12","v":0},{"$f":"INICIO!$G$13","v":0},{"$f":"INICIO!$G$14","v":0},{"$f":"INICIO!$G$15","v":0},{"$f":"INICIO!$G$16","v":0},{"$f":"INICIO!$G$17","v":0},{"$f":"INICIO!$G$18","v":0},{"$f":"INICIO!$G$19","v":0},{"$f":"INICIO!$G$20","v":0},null,null,null,6,3,3]
["HORAS PARA CAMBIO DE MASCARILLAS",{"$f":"INICIO!$L11","v":0},{"$f":"INICIO!$L12","v":0},{"$f":"INICIO!$L13","v":0},{"$f":"INICIO!$L14","v":0},{"$f":"INICIO!$L15","v":0},{"$f":"INICIO!$L16","v":0},{"$f":"INICIO!$L17","v":0},{"$f":"INICIO!$L18","v":0},{"$f":"INICIO!$L19","v":0},{"$f":"INICIO!$L20","v":0},null,null,null,8,4,4]
["MASCARILLAS HIGIÉNICAS REUTILIZABLES",{"$f":"INICIO!$H$11","v":0},{"$f":"INICIO!$H$12","v":0},{"$f":"INICIO!$H$13","v":0},{"$f":"INICIO!$H$14","v":0},{"$f":"INICIO!$H$15","v":0},{"$f":"INICIO!$H$16","v":0},{"$f":"INICIO!$H$17","v":0},{"$f":"INICIO!$H$18","v":0},{"$f":"INICIO!$H$19","v":0},{"$f":"INICIO!$H$20","v":0},{"$f":"A7","v":"MASCARILLAS HIGIÉNICAS REUTILIZABLES"},"TOTALES",null,null,5,5]
["STOCK DIARIO",{"$f":"IF(B7=0,0,B$3*ROUNDUP(B5/B6,0))","v":0},{"$f":"IF(C7=0,0,C$3*ROUNDUP(C5/C6,0))","v":0},0,0,0,0,0,0,0,0,{"$f":"SUM(B8:K8)","v":0},"STOCK DIARIO",null,null,6,6]
["STOCK SEMANAL",{"$f":"IF(B7=0,0,B$3*ROUNDUP(B4*B5/B6,0))","v":0},{"$f":"IF(C7=0,0,C$3*ROUNDUP(C4*C5/C6,0))","v":0},0,0,0,0,0,0,0,0,{"$f":"SUM(B9:K9)","v":0},"STOCK SEMANAL",null,null,7,7]
["STOCK MENSUAL",{"$f":"IF(B7=0,0,B$3*ROUNDUP(B4*B5*4.35/B6,0))","v":0},{"$f":"IF(C7=0,0,C$3*ROUNDUP(C4*C5*4.35/C6,0))","v":0},0,0,0,0,0,0,0,0,{"$f":"SUM(B10:K10)","v":0},"STOCK MENSUAL",null,null,null,8]
["STOCK TRIMESTRAL",{"$f":"IF(B7=0,0,B$3*ROUNDUP(B4*B5*4.35*3/B6,0))","v":0},{"$f":"IF(C7=0,0,C$3*ROUNDUP(C4*C5*4.35*3/C6,0))","v":0},0,0,0,0,0,0,0,0,{"$f":"SUM(B11:K11)","v":0},"STOCK TRIMESTRAL",null,null,null,9]
["MASCARILLAS HIGIÉNICAS NO REUTILIZABLES",{"$f":"INICIO!$I$11","v":0},{"$f":"INICIO!$I$12","v":0},{"$f":"INICIO!$I$13","v":0},{"$f":"INICIO!$I$14","v":0},{"$f":"INICIO!$I$15","v":0},{"$f":"INICIO!$I$16","v":0},{"$f":"INICIO!$I$17","v":0},{"$f":"INICIO!$I$18","v":0},{"$f":"INICIO!$I$19","v":0},{"$f":"INICIO!$I$20","v":0},{"$f":"A12","v":"MASCARILLAS HIGIÉNICAS NO REUTILIZABLES"},"TOTALES",null,null,null,10]
["STOCK DIARIO",{"$f":"IF(B12=0,0,B$3*ROUNDUP(B5/B6,0))","v":0},0,0,0,0,0,0,0,0,0,{"$f":"SUM(B13:K13)","v":0},"STOCK DIARIO",null,null,null,11]
["STOCK SEMANAL",{"$f":"IF(B12=0,0,B$3*ROUNDUP(B4*B5/B6,0))","v":0},0,0,0,0,0,0,0,0,0,{"$f":"SUM(B14:K14)","v":0},"STOCK SEMANAL",null,null,null,12]
["STOCK MENSUAL",{"$f":"IF(B12=0,0,B$3*ROUNDUP(B4*B5*4.35/B6,0))","v":0},{"$f":"IF(C12=0,0,C$3*ROUNDUP(C4*C5*4.35/C6,0))","v":0},0,0,0,0,0,0,0,0,0,"STOCK MENSUAL",null,null,null,13]
["STOCK TRIMESTRAL",{"$f":"IF(B12=0,0,B$3*ROUNDUP(B4*B5*4.35*3/B6,0))","v":0},{"$f":"IF(C12=0,0,C$3*ROUNDUP(C4*C5*4.35*3/C6,0))","v":0},0,0,0,0,0,0,0,0,0,"STOCK TRIMESTRAL",null,null,null,14]
["MASCARILLAS QUIRÚRGICAS",{"$f":"INICIO!$J$11","v":0},{"$f":"INICIO!$J$12","v":0},{"$f":"INICIO!$J$13","v":0},{"$f":"INICIO!$J$14","v":0},{"$f":"INICIO!$J$15","v":0},{"$f":"INICIO!$J$16","v":0},{"$f":"INICIO!$J$17","v":0},{"$f":"INICIO!$J$18","v":0},{"$f":"INICIO!$J$19","v":0},{"$f":"INICIO!$J$20","v":0},{"$f":"A17","v":"MASCARILLAS QUIRÚRGICAS"},"TOTALES",null,null,null,15]
["STOCK DIARIO",{"$f":"IF(B17=0,0,B$3*ROUNDUP(B5/B6,0))","v":0},0,0,0,0,0,0,0,0,0,{"$f":"SUM(B18:K18)","v":0},"STOCK DIARIO",null,null,null,16]
["STOCK SEMANAL",{"$f":"IF(B17=0,0,B$3*ROUNDUP(B4*B5/B6,0))","v":0},0,0,0,0,0,0,0,0,0,{"$f":"SUM(B19:K19)","v":0},"STOCK SEMANAL",null,null,null,17]
["STOCK MENSUAL",{"$f":"IF(B17=0,0,B$3*ROUNDUP(B4*B5*4.35/B6,0))","v":0},{"$f":"IF(C17=0,0,C$3*ROUNDUP(C4*C5*4.35/C6,0))","v":0},0,0,0,0,0,0,0,0,0,"STOCK MENSUAL",null,null,null,18]
["STOCK TRIMESTRAL",{"$f":"IF(B17=0,0,B$3*ROUNDUP(B4*B5*4.35*3/B6,0))","v":0},{"$f":"IF(C17=0,0,C$3*ROUNDUP(C4*C5*4.35*3/C6,0))","v":0},0,0,0,0,0,0,0,0,0,"STOCK TRIMESTRAL",null,null,null,19]
["MASCARILLAS FFP2",{"$f":"INICIO!$K$11","v":0},{"$f":"INICIO!$K$12","v":0},{"$f":"INICIO!$K$13","v":0},{"$f":"INICIO!$K$14","v":0},{"$f":"INICIO!$K$15","v":0},{"$f":"INICIO!$K$16","v":0},{"$f":"INICIO!$K$17","v":0},{"$f":"INICIO!$K$18","v":0},{"$f":"INICIO!$K$19","v":0},{"$f":"INICIO!$K$20","v":0},{"$f":"A22","v":"MASCARILLAS FFP2"},"TOTALES",null,null,null,20]
["STOCK DIARIO",{"$f":"IF(B22=0,0,B$3*ROUNDUP(B5/B6,0))","v":0},0,0,0,0,0,0,0,0,0,0,"STOCK DIARIO",null,null,null,21]
["STOCK SEMANAL",{"$f":"IF(B22=0,0,B$3*ROUNDUP(B4*B5/B6,0))","v":0},0,0,0,0,0,0,0,0,0,0,"STOCK SEMANAL",null,null,null,22]
["STOCK MENSUAL",{"$f":"IF(B22=0,0,B$3*ROUNDUP(B4*B5*4.35/B6,0))","v":0},{"$f":"IF(C22=0,0,C$3*ROUNDUP(C4*C5*4.35/C6,0))","v":0},0,0,0,0,0,0,0,0,0,"STOCK MENSUAL",null,null,null,23]
["STOCK TRIMESTRAL",{"$f":"IF(B22=0,0,B$3*ROUNDUP(B4*B5*4.35*3/B6,0))","v":0},{"$f":"IF(C22=0,0,C$3*ROUNDUP(C4*C5*4.35*3/C6,0))","v":0},0,0,0,0,0,0,0,0,0,"STOCK TRIMESTRAL",null,null,null,24]